{"text_format":"3","workbook":"xlsx","n_sheets":2,"sheets":["Inventario attrezzatura","Impostazioni"],"not_rendered":{"defined_names":4},"read":"whole","date_system":"1900"}

{"sheet":"Inventario attrezzatura","index":0,"n_rows":35,"n_cols":6,"rows_kept":35,"merged":[[0,1,2,2],[0,4,0,5]]}
[]
[{"$nulls":4},"Evidenziare gli articoli di durata superiore a:"]
[{"$nulls":4},4]
[]
[null,"ID APPARECCHIATURA","NOME ARTICOLO","ASSEGNATO A","DATA EMISSIONE","DURATA ARTICOLO"]
[null,"ARTICOLO0001","sedia","Dipendente 1",{"$f":"TODAY()-25","v":"2012-11-02"},{"$f":"IF(tblInventarioAttrezzatura[[#This Row],[DATA EMISSIONE]]<>\"\",TODAY()-tblInventarioAttrezzatura[[#This Row],[DATA EMISSIONE]],\"\")","v":{"v":25,"d":"25 Giorni"}}]
[null,"ARTICOLO0002","stampante laser","Dipendente 2",{"$f":"TODAY()-479","v":"2011-08-06"},{"$f":"IF(tblInventarioAttrezzatura[[#This Row],[DATA EMISSIONE]]<>\"\",TODAY()-tblInventarioAttrezzatura[[#This Row],[DATA EMISSIONE]],\"\")","v":{"v":479,"d":"479 Giorni"}}]
[null,"ARTICOLO0003","scanner","Dipendente 3",{"$f":"TODAY()-177","v":"2012-06-03"},{"$f":"IF(tblInventarioAttrezzatura[[#This Row],[DATA EMISSIONE]]<>\"\",TODAY()-tblInventarioAttrezzatura[[#This Row],[DATA EMISSIONE]],\"\")","v":{"v":177,"d":"177 Giorni"}}]
[null,"ARTICOLO0004","stampante laser","Dipendente 7",{"$f":"TODAY()-18","v":"2012-11-09"},{"$f":"IF(tblInventarioAttrezzatura[[#This Row],[DATA EMISSIONE]]<>\"\",TODAY()-tblInventarioAttrezzatura[[#This Row],[DATA EMISSIONE]],\"\")","v":{"v":18,"d":"18 Giorni"}}]
[null,"ARTICOLO0005","macchina per caffè","Dipendente 20",{"$f":"TODAY()-227","v":"2012-04-14"},{"$f":"IF(tblInventarioAttrezzatura[[#This Row],[DATA EMISSIONE]]<>\"\",TODAY()-tblInventarioAttrezzatura[[#This Row],[DATA EMISSIONE]],\"\")","v":{"v":227,"d":"227 Giorni"}}]
[null,"ARTICOLO0006","scanner","Dipendente 14",{"$f":"TODAY()-50","v":"2012-10-08"},{"$f":"IF(tblInventarioAttrezzatura[[#This Row],[DATA EMISSIONE]]<>\"\",TODAY()-tblInventarioAttrezzatura[[#This Row],[DATA EMISSIONE]],\"\")","v":{"v":50,"d":"50 Giorni"}}]
[null,"ARTICOLO0007","tavolo","Dipendente 4",{"$f":"TODAY()-120","v":"2012-07-30"},{"$f":"IF(tblInventarioAttrezzatura[[#This Row],[DATA EMISSIONE]]<>\"\",TODAY()-tblInventarioAttrezzatura[[#This Row],[DATA EMISSIONE]],\"\")","v":{"v":120,"d":"120 Giorni"}}]
[null,"ARTICOLO0008","fotocopiatrice","Dipendente 12",{"$f":"TODAY()-499","v":"2011-07-17"},{"$f":"IF(tblInventarioAttrezzatura[[#This Row],[DATA EMISSIONE]]<>\"\",TODAY()-tblInventarioAttrezzatura[[#This Row],[DATA EMISSIONE]],\"\")","v":{"v":499,"d":"499 Giorni"}}]
[null,"ARTICOLO0009","monitor supplementare","Dipendente 8",{"$f":"TODAY()-30","v":"2012-10-28"},{"$f":"IF(tblInventarioAttrezzatura[[#This Row],[DATA EMISSIONE]]<>\"\",TODAY()-tblInventarioAttrezzatura[[#This Row],[DATA EMISSIONE]],\"\")","v":{"v":30,"d":"30 Giorni"}}]
[null,"ARTICOLO0010","lavagna","Dipendente 19",{"$f":"TODAY()-50","v":"2012-10-08"},{"$f":"IF(tblInventarioAttrezzatura[[#This Row],[DATA EMISSIONE]]<>\"\",TODAY()-tblInventarioAttrezzatura[[#This Row],[DATA EMISSIONE]],\"\")","v":{"v":50,"d":"50 Giorni"}}]
[null,"ARTICOLO0011","fotocopiatrice","Dipendente 12",{"$f":"TODAY()-450","v":"2011-09-04"},{"$f":"IF(tblInventarioAttrezzatura[[#This Row],[DATA EMISSIONE]]<>\"\",TODAY()-tblInventarioAttrezzatura[[#This Row],[DATA EMISSIONE]],\"\")","v":{"v":450,"d":"450 Giorni"}}]
[null,"ARTICOLO0012","cancelleria","Dipendente 18",{"$f":"TODAY()-420","v":"2011-10-04"},{"$f":"IF(tblInventarioAttrezzatura[[#This Row],[DATA EMISSIONE]]<>\"\",TODAY()-tblInventarioAttrezzatura[[#This Row],[DATA EMISSIONE]],\"\")","v":{"v":420,"d":"420 Giorni"}}]
[null,"ARTICOLO0013","monitor supplementare","Dipendente 8",{"$f":"TODAY()-250","v":"2012-03-22"},{"$f":"IF(tblInventarioAttrezzatura[[#This Row],[DATA EMISSIONE]]<>\"\",TODAY()-tblInventarioAttrezzatura[[#This Row],[DATA EMISSIONE]],\"\")","v":{"v":250,"d":"250 Giorni"}}]
[null,"ARTICOLO0014","macchina per caffè","Dipendente 9",{"$f":"TODAY()-45","v":"2012-10-13"},{"$f":"IF(tblInventarioAttrezzatura[[#This Row],[DATA EMISSIONE]]<>\"\",TODAY()-tblInventarioAttrezzatura[[#This Row],[DATA EMISSIONE]],\"\")","v":{"v":45,"d":"45 Giorni"}}]
[null,"ARTICOLO0015","cancelleria","Dipendente 13",{"$f":"TODAY()-502","v":"2011-07-14"},{"$f":"IF(tblInventarioAttrezzatura[[#This Row],[DATA EMISSIONE]]<>\"\",TODAY()-tblInventarioAttrezzatura[[#This Row],[DATA EMISSIONE]],\"\")","v":{"v":502,"d":"502 Giorni"}}]
[null,"ARTICOLO0016","scanner","Dipendente 1",{"$f":"TODAY()-350","v":"2011-12-13"},{"$f":"IF(tblInventarioAttrezzatura[[#This Row],[DATA EMISSIONE]]<>\"\",TODAY()-tblInventarioAttrezzatura[[#This Row],[DATA EMISSIONE]],\"\")","v":{"v":350,"d":"350 Giorni"}}]
[null,"ARTICOLO0017","fotocopiatrice","Dipendente 19",{"$f":"TODAY()-125","v":"2012-07-25"},{"$f":"IF(tblInventarioAttrezzatura[[#This Row],[DATA EMISSIONE]]<>\"\",TODAY()-tblInventarioAttrezzatura[[#This Row],[DATA EMISSIONE]],\"\")","v":{"v":125,"d":"125 Giorni"}}]
[null,"ARTICOLO0018","lavagna","Dipendente 15",{"$f":"TODAY()-90","v":"2012-08-29"},{"$f":"IF(tblInventarioAttrezzatura[[#This Row],[DATA EMISSIONE]]<>\"\",TODAY()-tblInventarioAttrezzatura[[#This Row],[DATA EMISSIONE]],\"\")","v":{"v":90,"d":"90 Giorni"}}]
[null,"ARTICOLO0019","sedia","Dipendente 16",{"$f":"TODAY()-730","v":"2010-11-28"},{"$f":"IF(tblInventarioAttrezzatura[[#This Row],[DATA EMISSIONE]]<>\"\",TODAY()-tblInventarioAttrezzatura[[#This Row],[DATA EMISSIONE]],\"\")","v":{"v":730,"d":"730 Giorni"}}]
[null,"ARTICOLO0020","panno polvere (1 set)","Dipendente 3",{"$f":"TODAY()-540","v":"2011-06-06"},{"$f":"IF(tblInventarioAttrezzatura[[#This Row],[DATA EMISSIONE]]<>\"\",TODAY()-tblInventarioAttrezzatura[[#This Row],[DATA EMISSIONE]],\"\")","v":{"v":540,"d":"540 Giorni"}}]
[null,"ARTICOLO0021","stampante laser","Dipendente 7",{"$f":"TODAY()-18","v":"2012-11-09"},{"$f":"IF(tblInventarioAttrezzatura[[#This Row],[DATA EMISSIONE]]<>\"\",TODAY()-tblInventarioAttrezzatura[[#This Row],[DATA EMISSIONE]],\"\")","v":{"v":18,"d":"18 Giorni"}}]
[null,"ARTICOLO0022","computer portatile","Dipendente 8",{"$f":"TODAY()-283","v":"2012-02-18"},{"$f":"IF(tblInventarioAttrezzatura[[#This Row],[DATA EMISSIONE]]<>\"\",TODAY()-tblInventarioAttrezzatura[[#This Row],[DATA EMISSIONE]],\"\")","v":{"v":283,"d":"283 Giorni"}}]
[null,"ARTICOLO0023","cancelleria","Dipendente 9",{"$f":"TODAY()-479","v":"2011-08-06"},{"$f":"IF(tblInventarioAttrezzatura[[#This Row],[DATA EMISSIONE]]<>\"\",TODAY()-tblInventarioAttrezzatura[[#This Row],[DATA EMISSIONE]],\"\")","v":{"v":479,"d":"479 Giorni"}}]
[null,"ARTICOLO0024","stampante laser","Dipendente 19",{"$f":"TODAY()-355","v":"2011-12-08"},{"$f":"IF(tblInventarioAttrezzatura[[#This Row],[DATA EMISSIONE]]<>\"\",TODAY()-tblInventarioAttrezzatura[[#This Row],[DATA EMISSIONE]],\"\")","v":{"v":355,"d":"355 Giorni"}}]
[null,"ARTICOLO0025","tavolo","Dipendente 7",{"$f":"TODAY()-28","v":"2012-10-30"},{"$f":"IF(tblInventarioAttrezzatura[[#This Row],[DATA EMISSIONE]]<>\"\",TODAY()-tblInventarioAttrezzatura[[#This Row],[DATA EMISSIONE]],\"\")","v":{"v":28,"d":"28 Giorni"}}]
[null,"ARTICOLO0026","lavagna","Dipendente 8",{"$f":"TODAY()-28","v":"2012-10-30"},{"$f":"IF(tblInventarioAttrezzatura[[#This Row],[DATA EMISSIONE]]<>\"\",TODAY()-tblInventarioAttrezzatura[[#This Row],[DATA EMISSIONE]],\"\")","v":{"v":28,"d":"28 Giorni"}}]
[null,"ARTICOLO0027","computer portatile","Dipendente 19",{"$f":"TODAY()-736","v":"2010-11-22"},{"$f":"IF(tblInventarioAttrezzatura[[#This Row],[DATA EMISSIONE]]<>\"\",TODAY()-tblInventarioAttrezzatura[[#This Row],[DATA EMISSIONE]],\"\")","v":{"v":736,"d":"736 Giorni"}}]
[null,"ARTICOLO0028","tavolo","Dipendente 12",{"$f":"TODAY()-68","v":"2012-09-20"},{"$f":"IF(tblInventarioAttrezzatura[[#This Row],[DATA EMISSIONE]]<>\"\",TODAY()-tblInventarioAttrezzatura[[#This Row],[DATA EMISSIONE]],\"\")","v":{"v":68,"d":"68 Giorni"}}]
[null,"ARTICOLO0029","scanner","Dipendente 14",{"$f":"TODAY()-67","v":"2012-09-21"},{"$f":"IF(tblInventarioAttrezzatura[[#This Row],[DATA EMISSIONE]]<>\"\",TODAY()-tblInventarioAttrezzatura[[#This Row],[DATA EMISSIONE]],\"\")","v":{"v":67,"d":"67 Giorni"}}]
[null,"ARTICOLO0030","macchina per caffè","Dipendente 3",{"$f":"TODAY()-149","v":"2012-07-01"},{"$f":"IF(tblInventarioAttrezzatura[[#This Row],[DATA EMISSIONE]]<>\"\",TODAY()-tblInventarioAttrezzatura[[#This Row],[DATA EMISSIONE]],\"\")","v":{"v":149,"d":"149 Giorni"}}]

{"sheet":"Impostazioni","index":1,"n_rows":23,"n_cols":4,"rows_kept":23}
[]
[]
[null,"DIPENDENTI",null,"ARTICOLI"]
[null,"Dipendente 1",null,"sedia"]
[null,"Dipendente 2",null,"macchina per caffè"]
[null,"Dipendente 3",null,"fotocopiatrice"]
[null,"Dipendente 4",null,"computer desktop"]
[null,"Dipendente 5",null,"panno polvere (1 set)"]
[null,"Dipendente 6",null,"monitor supplementare"]
[null,"Dipendente 7",null,"stampante a getto d'inchiostro"]
[null,"Dipendente 8",null,"computer portatile"]
[null,"Dipendente 9",null,"stampante laser"]
[null,"Dipendente 10",null,"evidenziatori (3 confezioni)"]
[null,"Dipendente 11",null,"scanner"]
[null,"Dipendente 12",null,"cancelleria"]
[null,"Dipendente 13",null,"tavolo"]
[null,"Dipendente 14",null,"unità USB"]
[null,"Dipendente 15",null,"lavagna"]
[null,"Dipendente 16"]
[null,"Dipendente 17"]
[null,"Dipendente 18"]
[null,"Dipendente 19"]
[null,"Dipendente 20"]